[Event "SWE-ch Masters Elite 2019"]
[Site "Eskilstuna"]
[Date "2019.07.07"]
[Round "2.4"]
[White "Wengholm, Anders"]
[Black "Rydstrom, Tom"]
[Result "1-0"]
[ECO "A27"]
[WhiteElo "2219"]
[BlackElo "2345"]
[Annotator "NA"]
[PlyCount "111"]
[EventDate "2019.07.06"]
[EventType "tourn"]
[EventCountry "SWE"]
[SourceTitle "playchess.com"]
[Source "ChessBase"]
[SourceQuality "1"]
[TimeControl "40/5400+30:1800+30"]

1. c4 {[%emt 0:00:00]} e5 {[%emt 0:02:23]} 2. Nc3 {[%emt 0:01:55]} Nc6 {[%emt 0:00:25]} 3. Nf3 {[%emt 0:04:35]} f5 {[%emt 0:02:15]} 4. g3 {[%emt 0:01:11]} Nf6 {[%emt 0:01:04]} 5. d4 {[%emt 0:00:49]} e4 {[%emt 0:00:27]} 6. Nh4 {[%emt 0:00:15]} d5 {[%emt 0:00:47]} 7. Bg5 {[%emt 0:03:45]} Be7 {[%emt 0:13:43]} 8. e3 {[%emt 0:04:50]} O-O {[%emt 0:31:45]} 9. Ng2 {[%emt 0:24:50]} dxc4 {[%emt 0:08:47]} 10. Bxc4+ {[%emt 0:03:37]} Kh8 {[%emt 0:00:02]} 11. Nf4 {[%emt 0:04:24]} Ng4 {[%emt 0:04:31]} 12. h4 {[%emt 0:07:13]} Qd6 {[%emt 0:21:24]} 13. a3 {[%emt 0:03:19]} a6 {[%emt 0:01:40]} 14. Rc1 {[%emt 0:03:16]} Bd7 {[%emt 0:03:52]} 15. Be2 {[%emt 0:04:40]} Rae8 {[%emt 0:03:11]} 16. Nxe4 {[%emt 0:06:42]} fxe4 {[%emt 0:00:16]} 17. Bxg4 {[%emt 0:00:06]} Bf6 {[%emt 0:01:08]} 18. Bxd7 {[%emt 0:06:55]} Qxd7 {[%emt 0:00:02]} 19. Qh5 {[%emt 0:00:12]} Kg8 {[%emt 0:00:09]} 20. Bxf6 {[%emt 0:00:37]} Rxf6 {[%emt 0:00:14]} 21. Qd5+ {[%emt 0:00:15]} Qf7 {[%emt 0:00:26]} 22. Qxf7+ {[%emt 0:00:23]} Rxf7 {[%emt 0:00:01]} 23. Ke2 {[%emt 0:04:29]} Nd8 {[%emt 0:00:16]} 24. d5 {[%emt 0:01:40]} Re5 {[%emt 0:01:18]} 25. Rc4 {[%emt 0:04:21]} Rd7 {[%emt 0:01:43]} 26. Rd1 {[%emt 0:02:16]} Kf7 {[%emt 0:00:30]} 27. Rdd4 {[%emt 0:01:45]} Rde7 {[%emt 0:00:02]} 28. Rd2 {[%emt 0:01:16]} Rd7 {[%emt 0:01:07]} 29. Rdd4 {[%emt 0:01:20]} Rde7 {[%emt 0:00:05]} 30. b4 {[%emt 0:00:15]} Ke8 {[%emt 0:00:31]} 31. Rc5 {[%emt 0:00:30]} Rd7 {[%emt 0:00:47]} 32. a4 {[%emt 0:01:01]} Ke7 {[%emt 0:00:26]} 33. f3 {[%emt 0:00:31]} exf3+ 34. Kxf3 {[%emt 0:00:02]} Kd6 {[%emt 0:00:31]} 35. e4 {[%emt 0:00:25]} Re8 {[%emt 0:00:33]} 36. Rd1 {[%emt 0:01:28]} Nf7 {[%emt 0:00:33]} 37. Ne6 {[%emt 0:00:36]} Ne5+ {[%emt 0:00:19]} 38. Kg2 {[%emt 0:00:20]} Rf7 {[%emt 0:00:32]} 39. Rc2 {[%emt 0:00:14]} h6 {[%emt 0:01:03]} 40. h5 {[%emt 0:00:57]} Ng4 {[%emt 0:00:24]} 41. Re2 {[%emt 0:30:48]} Ke5 {[%emt 0:08:22]} 42. Rd3 {[%emt 0:00:00]} Nf6 {[%emt 0:07:55]} 43. Rf3 {[%emt 0:00:00]} Rxe6 {[%emt 0:06:09]} 44. dxe6 {[%emt 0:00:00]} Re7 {[%emt 0:00:04]} 45. Rc3 {[%emt 0:00:00]} c6 {[%emt 0:03:12]} 46. b5 {[%emt 0:00:00]} axb5 {[%emt 0:00:14]} 47. axb5 {[%emt 0:00:00]} Kd4 {[%emt 0:01:06]} 48. Rc1 {[%emt 0:00:00]} cxb5 {[%emt 0:06:04]} 49. Rd2+ {[%emt 0:02:16]} Ke3 {[%emt 0:01:10]} 50. Rd6 {[%emt 0:00:17]} Kxe4 {[%emt 0:00:56]} 51. Re1+ {[%emt 0:00:53]} Kf5 {[%emt 0:00:04]} 52. Kf3 {[%emt 0:00:49]} b4 {[%emt 0:00:46]} 53. g4+ {[%emt 0:01:00]} Kg5 {[%emt 0:00:44]} 54. Re5+ {[%emt 0:00:14]} Kh4 {[%emt 0:00:01]} 55. Rd1 {[%emt 0:00:22]} Nxg4 {[%emt 0:00:13]} 56. Rh1+ {[%emt 0:00:10]} 1-0

[Event "SWE-ch Masters Elite 2019"]
[Site "Eskilstuna"]
[Date "2019.07.07"]
[Round "2.5"]
[White "Ernst, Thomas"]
[Black "Nyander, Joakim"]
[Result "1/2-1/2"]
[ECO "B42"]
[WhiteElo "2335"]
[BlackElo "2233"]
[Annotator "NA"]
[PlyCount "76"]
[EventDate "2019.07.06"]
[EventType "tourn"]
[EventCountry "SWE"]
[SourceTitle "playchess.com"]
[Source "ChessBase"]
[SourceQuality "1"]
[TimeControl "40/5400+30:1800+30"]

1. e4 {[%emt 0:00:00]} c5 {[%emt 0:00:00]} 2. Nf3 {[%emt 0:00:00]} e6 {[%emt 0:00:00]} 3. d4 {[%emt 0:00:00]} cxd4 {[%emt 0:00:53]} 4. Nxd4 {[%emt 0:00:00]} a6 {[%emt 0:00:29]} 5. Bd3 {[%emt 0:00:14]} Nf6 {[%emt 0:00:16]} 6. O-O {[%emt 0:00:19]} d6 {[%emt 0:00:30]} 7. c4 {[%emt 0:05:49]} Be7 {[%emt 0:02:35]} 8. Nc3 {[%emt 0:00:29]} O-O {[%emt 0:00:44]} 9. Be3 {[%emt 0:01:04]} b6 {[%emt 0:03:04]} 10. f4 {[%emt 0:03:33]} Bb7 {[%emt 0:00:31]} 11. g4 {[%emt 0:02:50]} Nc6 {[%emt 0:01:51]} 12. Nxc6 {[%emt 0:08:26]} Bxc6 {[%emt 0:00:13]} 13. g5 {[%emt 0:00:09]} Nd7 {[%emt 0:00:40]} 14. Qh5 {[%emt 0:00:58]} g6 {[%emt 0:02:03]} 15. Qh4 {[%emt 0:06:18]} f6 {[%emt 0:05:28]} 16. Qh3 {[%emt 0:08:50]} Nc5 {[%emt 0:06:15]} 17. Bxc5 {[%emt 0:09:36]} bxc5 {[%emt 0:07:02]} 18. Qxe6+ {[%emt 0:00:48]} Kh8 {[%emt 0:01:17]} 19. h4 {[%emt 0:09:41]} fxg5 {[%emt 0:06:14]} 20. fxg5 {[%emt 0:00:52]} Re8 {[%emt 0:06:32]} 21. Qg4 {[%emt 0:02:31]} Bf8 {[%emt 0:09:06]} 22. Rf7 {[%emt 0:09:41]} Re7 {[%emt 0:13:04]} 23. Raf1 {[%emt 0:01:15]} Bg7 {[%emt 0:02:16]} 24. Nd5 {[%emt 0:06:42]} Bxd5 {[%emt 0:05:00]} 25. exd5 {[%emt 0:00:05]} Qe8 {[%emt 0:01:50]} 26. Rxe7 {[%emt 0:06:56]} Qxe7 {[%emt 0:00:04]} 27. Qe6 {[%emt 0:00:16]} Qxe6 {[%emt 0:03:51]} 28. dxe6 {[%emt 0:00:04]} Re8 {[%emt 0:00:47]} 29. Rf7 {[%emt 0:02:34]} Rxe6 {[%emt 0:01:15]} 30. Ra7 {[%emt 0:00:24]} Bxb2 {[%emt 0:02:58]} 31. Rxa6 {[%emt 0:00:12]} Re3 {[%emt 0:02:47]} 32. Bf1 {[%emt 0:01:08]} Bd4 {[%emt 0:01:53]} 33. Kg2 {[%emt 0:00:57]} Be5 {[%emt 0:04:39]} 34. a4 {[%emt 0:03:04]} Bg3 {[%emt 0:02:22]} 35. Ra8+ {[%emt 0:02:42]} Kg7 {[%emt 0:00:08]} 36. Ra7+ {[%emt 0:00:13]} Kh8 {[%emt 0:01:57]} 37. Ra8+ {[%emt 0:06:29]} Kg7 {[%emt 0:00:04]} 38. Ra7+ {[%emt 0:00:10]} Kh8 {[%emt 0:00:10]} 1/2-1/2

[Event "SWE-ch Masters Elite 2019"]
[Site "Eskilstuna"]
[Date "2019.07.08"]
[Round "3.1"]
[White "Lindberg, Bengt"]
[Black "Cramling, Dan"]
[Result "1/2-1/2"]
[ECO "B06"]
[WhiteElo "2384"]
[BlackElo "2321"]
[Annotator "NA"]
[PlyCount "65"]
[EventDate "2019.07.06"]
[EventType "tourn"]
[EventCountry "SWE"]
[SourceTitle "playchess.com"]
[Source "ChessBase"]
[SourceQuality "1"]
[TimeControl "40/5400+30:1800+30"]

1. e4 {[%emt 0:00:00]} g6 {[%emt 0:04:06]} 2. d4 {[%emt 0:00:00]} Bg7 {[%emt 0:00:17]} 3. Nc3 {[%emt 0:00:06]} d5 {[%emt 0:00:11]} 4. exd5 {[%emt 0:04:24]} Nf6 {[%emt 0:00:14]} 5. Bc4 {[%emt 0:25:48]} Nbd7 {[%emt 0:02:07]} 6. Bg5 {[%emt 0:01:17]} Nb6 {[%emt 0:34:17]} 7. Bxf6 {[%emt 0:00:38]} Bxf6 {[%emt 0:00:06]} 8. Bb3 {[%emt 0:00:06]} a5 {[%emt 0:00:45]} 9. a4 {[%emt 0:00:59]} O-O {[%emt 0:11:24]} 10. Nge2 {[%emt 0:02:45]} h5 {[%emt 0:02:16]} 11. Qd2 {[%emt 0:14:52]} Kg7 {[%emt 0:06:05]} 12. h3 {[%emt 0:04:22]} h4 {[%emt 0:02:22]} 13. Nf4 {[%emt 0:05:42]} Rh8 {[%emt 0:08:10]} 14. Ne4 {[%emt 0:03:18]} c6 {[%emt 0:01:05]} 15. dxc6 {[%emt 0:15:21]} Qxd4 {[%emt 0:01:23]} 16. Nxf6 {[%emt 0:01:16]} Qxf6 {[%emt 0:00:24]} 17. cxb7 {[%emt 0:03:31]} Bxb7 {[%emt 0:00:12]} 18. O-O {[%emt 0:03:08]} Qxb2 {[%emt 0:00:32]} 19. Qe3 {[%emt 0:00:55]} Qf6 {[%emt 0:00:21]} 20. Rfe1 {[%emt 0:01:34]} Rab8 {[%emt 0:12:42]} 21. Nd3 {[%emt 0:07:24]} Nd5 {[%emt 0:10:02]} 22. Bxd5 {[%emt 0:00:26]} Bxd5 {[%emt 0:00:01]} 23. Qxe7 {[%emt 0:00:14]} Rhc8 {[%emt 0:00:55]} 24. Qxf6+ {[%emt 0:01:04]} Kxf6 {[%emt 0:00:02]} 25. Re5 {[%emt 0:00:13]} Rd8 {[%emt 0:01:07]} 26. Rae1 {[%emt 0:01:18]} Rbc8 {[%emt 0:01:10]} 27. Nf4 {[%emt 0:00:30]} Bb7 {[%emt 0:00:04]} 28. Rxa5 {[%emt 0:01:22]} Rxc2 {[%emt 0:00:09]} 29. Rb5 {[%emt 0:01:06]} Bc6 {[%emt 0:00:19]} 30. Rb6 {[%emt 0:00:36]} Rd4 {[%emt 0:00:25]} 31. Ne2 {[%emt 0:00:30]} Rxa4 {[%emt 0:00:51]} 32. Rc1 {[%emt 0:00:15]} Rxe2 {[%emt 0:00:54]} 33. Rbxc6+ {[%emt 0:00:14]} 1/2-1/2

[Event "SWE-ch Masters Elite 2019"]
[Site "Eskilstuna"]
[Date "2019.07.08"]
[Round "3.2"]
[White "Andersson, Tommy"]
[Black "Seo, Jung Min"]
[Result "1-0"]
[ECO "D37"]
[WhiteElo "2390"]
[BlackElo "2399"]
[Annotator "NA"]
[PlyCount "69"]
[EventDate "2019.07.06"]
[EventType "tourn"]
[EventCountry "SWE"]
[SourceTitle "playchess.com"]
[Source "ChessBase"]
[SourceQuality "1"]
[TimeControl "40/5400+30:1800+30"]

1. d4 {[%emt 0:00:00]} Nf6 {[%emt 0:00:00]} 2. c4 {[%emt 0:00:00]} e6 {[%emt 0:00:14]} 3. Nf3 {[%emt 0:00:00]} Bb4+ {[%emt 0:02:25]} 4. Bd2 {[%emt 0:02:40]} Be7 {[%emt 0:02:55]} 5. Nc3 {[%emt 0:00:28]} d5 {[%emt 0:00:07]} 6. Bf4 {[%emt 0:02:03]} O-O {[%emt 0:00:59]} 7. e3 {[%emt 0:00:07]} Nbd7 {[%emt 0:02:54]} 8. c5 {[%emt 0:01:46]} c6 {[%emt 0:01:04]} 9. Be2 {[%emt 0:02:58]} Nh5 {[%emt 0:01:24]} 10. O-O {[%emt 0:00:44]} Nxf4 {[%emt 0:00:55]} 11. exf4 {[%emt 0:00:03]} Qc7 {[%emt 0:02:41]} 12. g3 {[%emt 0:00:44]} f6 {[%emt 0:04:46]} 13. Bd3 {[%emt 0:23:04]} e5 {[%emt 0:08:55]} 14. Qc2 {[%emt 0:05:33]} e4 {[%emt 0:02:02]} 15. Nxe4 {[%emt 0:02:13]} dxe4 {[%emt 0:00:25]} 16. Bxe4 {[%emt 0:00:14]} f5 {[%emt 0:02:22]} 17. Bxf5 {[%emt 0:02:06]} Nf6 {[%emt 0:00:06]} 18. Bd3 {[%emt 0:01:44]} Rd8 {[%emt 0:06:05]} 19. Ng5 {[%emt 0:10:52]} Rxd4 {[%emt 0:04:48]} 20. Bxh7+ {[%emt 0:08:25]} Kf8 {[%emt 0:00:02]} 21. Rfe1 {[%emt 0:11:15]} Qd7 {[%emt 0:14:53]} 22. Bg6 {[%emt 0:05:46]} Rd2 {[%emt 0:03:29]} 23. Qb3 {[%emt 0:01:04]} Nd5 {[%emt 0:01:07]} 24. Nf3 {[%emt 0:03:20]} Qg4 {[%emt 0:01:04]} 25. Be4 {[%emt 0:01:25]} Rxf2 {[%emt 0:00:54]} 26. Kxf2 {[%emt 0:01:35]} Bxc5+ {[%emt 0:00:04]} 27. Kg2 {[%emt 0:00:44]} Nxf4+ {[%emt 0:03:20]} 28. Kh1 {[%emt 0:00:17]} Nh3 {[%emt 0:00:21]} 29. Re2 {[%emt 0:05:55]} Nf2+ {[%emt 0:09:44]} 30. Rxf2 {[%emt 0:00:24]} Bxf2 {[%emt 0:00:21]} 31. Qd3 {[%emt 0:01:27]} Bb6 {[%emt 0:02:12]} 32. Rf1 {[%emt 0:02:58]} Qh5 {[%emt 0:01:23]} 33. Ne5+ {[%emt 0:02:28]} Ke7 {[%emt 0:00:05]} 34. Ng6+ {[%emt 0:00:32]} Ke6 {[%emt 0:00:03]} 35. Bf5+ {[%emt 0:00:23] Kd5} 1-0

[Event "SWE-ch Masters Elite 2019"]
[Site "Eskilstuna"]
[Date "2019.07.08"]
[Round "3.3"]
[White "Rydstrom, Tom"]
[Black "Logdahl, Harald"]
[Result "1-0"]
[ECO "C27"]
[WhiteElo "2345"]
[BlackElo "2269"]
[Annotator "NA"]
[PlyCount "105"]
[EventDate "2019.07.06"]
[EventType "tourn"]
[EventCountry "SWE"]
[SourceTitle "playchess.com"]
[Source "ChessBase"]
[SourceQuality "1"]
[TimeControl "40/5400+30:1800+30"]

1. e4 {[%emt 0:00:00]} Nf6 {[%emt 0:00:00]} 2. Nc3 {[%emt 0:00:00]} e5 {[%emt 0:00:14]} 3. Bc4 {[%emt 0:00:45]} Nxe4 {[%emt 0:01:14]} 4. Qh5 {[%emt 0:00:47]} Nd6 {[%emt 0:00:10]} 5. Bb3 {[%emt 0:00:07]} Nc6 {[%emt 0:00:28]} 6. Nb5 {[%emt 0:00:31]} g6 {[%emt 0:00:10]} 7. Qf3 {[%emt 0:00:04]} f5 {[%emt 0:00:09]} 8. Qd5 {[%emt 0:00:35]} Qe7 {[%emt 0:00:11]} 9. Nxc7+ {[%emt 0:00:38]} Kd8 {[%emt 0:00:10]} 10. Nxa8 {[%emt 0:00:03]} b6 {[%emt 0:00:10]} 11. Ne2 {[%emt 0:00:05]} Bb7 {[%emt 0:03:37]} 12. Nxb6 {[%emt 0:00:33]} axb6 {[%emt 0:00:32]} 13. Qd3 {[%emt 0:00:07]} f4 {[%emt 0:06:08]} 14. O-O {[%emt 0:00:32]} e4 {[%emt 0:35:42]} 15. Qh3 {[%emt 0:00:04]} g5 {[%emt 0:01:54]} 16. d3 {[%emt 0:05:24]} Ne5 {[%emt 0:23:09]} 17. d4 {[%emt 0:13:04]} Ng6 {[%emt 0:02:51]} 18. Qc3 {[%emt 0:04:33]} Nf5 {[%emt 0:05:16]} 19. Qc4 {[%emt 0:00:28]} Nfh4 {[%emt 0:04:53]} 20. Nc3 {[%emt 0:05:15]} Nxg2 {[%emt 0:06:00]} 21. Qb5 {[%emt 0:05:33]} Qf6 {[%emt 0:06:02]} 22. Bd5 {[%emt 0:09:39]} Bxd5 {[%emt 0:00:29]} 23. Qxd5 {[%emt 0:00:06]} Ne7 {[%emt 0:01:15]} 24. Nxe4 {[%emt 0:06:39]} Nxd5 {[%emt 0:00:02]} 25. Nxf6 {[%emt 0:00:05]} Nxf6 {[%emt 0:00:10]} 26. Kxg2 {[%emt 0:00:01]} Bd6 {[%emt 0:00:27]} 27. Bd2 {[%emt 0:06:40]} h5 {[%emt 0:00:17]} 28. c4 {[%emt 0:01:26]} g4 {[%emt 0:00:28]} 29. f3 {[%emt 0:00:34]} gxf3+ {[%emt 0:01:00]} 30. Kxf3 {[%emt 0:00:35]} Ng4 {[%emt 0:00:16]} 31. Rh1 {[%emt 0:00:18]} Rg8 {[%emt 0:01:00]} 32. h3 {[%emt 0:00:57]} Ne3 {[%emt 0:00:03]} 33. Rag1 {[%emt 0:00:07]} Re8 {[%emt 0:00:32]} 34. Bxe3 {[%emt 0:01:47]} Rxe3+ {[%emt 0:00:12]} 35. Kf2 {[%emt 0:00:01]} Rd3 {[%emt 0:00:51]} 36. Rd1 {[%emt 0:00:10]} Rg3 {[%emt 0:00:09]} 37. Rhg1 {[%emt 0:10:37]} Rxh3 {[%emt 0:00:13]} 38. Rh1 {[%emt 0:00:08]} Re3 {[%emt 0:01:38]} 39. Rxh5 {[%emt 0:00:09]} Re4 {[%emt 0:00:38]} 40. c5 {[%emt 0:01:10]} bxc5 {[%emt 0:00:16]} 41. dxc5 {[%emt 0:30:07]} Be5 {[%emt 0:30:11]} 42. Rh7 {[%emt 0:01:23]} Rd4 {[%emt 0:00:00]} 43. Rxd4 {[%emt 0:00:00]} Bxd4+ {[%emt 0:00:00]} 44. Kf3 {[%emt 0:00:00]} Bxb2 {[%emt 0:00:00]} 45. Ke4 {[%emt 0:00:00]} Bf6 {[%emt 0:00:00]} 46. Rf7 {[%emt 0:00:00]} Bg5 {[%emt 0:00:00]} 47. Kd5 {[%emt 0:00:00]} Bh4 {[%emt 0:00:00]} 48. a4 {[%emt 0:00:00]} Bg3 {[%emt 0:00:01]} 49. a5 {[%emt 0:00:00]} Kc8 {[%emt 0:00:43]} 50. a6 {[%emt 0:00:00]} Kb8 {[%emt 0:01:19]} 51. Kd6 {[%emt 0:00:00]} f3+ {[%emt 0:00:27]} 52. Kxd7 {[%emt 0:00:00]} f2 {[%emt 0:02:37]} 53. c6 {[%emt 0:00:00]} 1-0

[Event "SWE-ch Masters Elite 2019"]
[Site "Eskilstuna"]
[Date "2019.07.08"]
[Round "3.4"]
[White "Malmstig, Erik"]
[Black "Ernst, Thomas"]
[Result "0-1"]
[ECO "D23"]
[WhiteElo "2357"]
[BlackElo "2335"]
[Annotator "NA"]
[PlyCount "192"]
[EventDate "2019.07.06"]
[EventType "tourn"]
[EventCountry "SWE"]
[SourceTitle "playchess.com"]
[Source "ChessBase"]
[SourceQuality "1"]
[TimeControl "40/5400+30:1800+30"]

1. d4 {[%emt 0:00:00]} d5 {[%emt 0:00:00]} 2. c4 {[%emt 0:00:00]} c6 {[%emt 0:00:00]} 3. Nf3 {[%emt 0:00:01]} Nf6 {[%emt 0:00:00]} 4. Qc2 {[%emt 0:00:17]} dxc4 {[%emt 0:00:16]} 5. Qxc4 {[%emt 0:00:21]} Bf5 {[%emt 0:00:12]} 6. Nc3 {[%emt 0:00:59]} Nbd7 {[%emt 0:03:39]} 7. e3 {[%emt 0:01:25]} e6 {[%emt 0:01:10]} 8. Be2 {[%emt 0:01:25]} Bd6 {[%emt 0:08:49]} 9. O-O {[%emt 0:02:36]} h6 {[%emt 0:02:29]} 10. a4 {[%emt 0:01:58]} a5 {[%emt 0:02:05]} 11. Nd2 {[%emt 0:09:31]} e5 {[%emt 0:08:18]} 12. Qb3 {[%emt 0:29:12]} exd4 {[%emt 0:00:28]} 13. exd4 {[%emt 0:01:45]} Qc7 {[%emt 0:06:27]} 14. g3 {[%emt 0:02:23]} O-O {[%emt 0:00:10]} 15. Nc4 {[%emt 0:00:25]} Be6 {[%emt 0:01:45]} 16. Qc2 {[%emt 0:00:39]} Nb6 {[%emt 0:03:38]} 17. Nxd6 {[%emt 0:01:29]} Qxd6 {[%emt 0:00:08]} 18. Bf4 {[%emt 0:00:25]} Qb4 {[%emt 0:13:45]} 19. Ra3 {[%emt 0:05:56]} Nbd5 {[%emt 0:09:56]} 20. Be5 {[%emt 0:03:16]} Nxc3 {[%emt 0:04:31]} 21. Qxc3 {[%emt 0:10:21]} Nd5 {[%emt 0:00:49]} 22. Qc1 {[%emt 0:09:46]} f6 {[%emt 0:07:39]} 23. Bf4 {[%emt 0:00:14]} Nxf4 {[%emt 0:00:16]} 24. Qxf4 {[%emt 0:00:14]} Rad8 {[%emt 0:00:42]} 25. Rd1 {[%emt 0:01:50]} Bb3 {[%emt 0:03:53]} 26. Rd2 {[%emt 0:11:03]} Rfe8 {[%emt 0:02:13]} 27. Bh5 {[%emt 0:01:55]} Re7 {[%emt 0:08:50]} 28. Kg2 {[%emt 0:00:57]} Red7 {[%emt 0:01:17]} 29. Bg4 {[%emt 0:01:55]} Rd6 {[%emt 0:00:17]} 30. Qe3 {[%emt 0:00:29]} Bf7 {[%emt 0:01:53]} 31. Rad3 {[%emt 0:00:50]} Qxa4 {[%emt 0:01:15]} 32. Bd1 {[%emt 0:00:23]} Qb5 {[%emt 0:01:00]} 33. Rc3 {[%emt 0:01:01]} Qb6 {[%emt 0:00:44]} 34. Bb3 {[%emt 0:01:11]} Bxb3 {[%emt 0:01:20]} 35. Rxb3 {[%emt 0:00:03]} Qc7 {[%emt 0:00:07]} 36. Re2 {[%emt 0:00:26]} Rxd4 {[%emt 0:01:32]} 37. Qe6+ {[%emt 0:00:14]} Kh8 {[%emt 0:00:20]} 38. Re4 {[%emt 0:00:18]} Rxe4 {[%emt 0:00:33]} 39. Qxe4 {[%emt 0:00:04]} b6 {[%emt 0:01:23]} 40. Qe6 {[%emt 0:01:43]} a4 {[%emt 0:02:04]} 41. Rd3 {[%emt 0:10:07]} Rxd3 {[%emt 0:01:18]} 42. Qe8+ {[%emt 0:00:08]} Kh7 {[%emt 0:00:06]} 43. Qe4+ {[%emt 0:00:05]} g6 {[%emt 0:00:13]} 44. Qxd3 {[%emt 0:00:04]} b5 {[%emt 0:01:29]} 45. g4 {[%emt 0:01:45]} Kg7 {[%emt 0:02:09]} 46. h4 {[%emt 0:00:38]} Qc8 {[%emt 0:00:19]} 47. Qe4 {[%emt 0:05:02]} Qd7 {[%emt 0:01:21]} 48. f3 {[%emt 0:00:27]} h5 {[%emt 0:04:08]} 49. g5 {[%emt 0:04:28]} Kf7 {[%emt 0:00:58]} 50. gxf6 {[%emt 0:04:13]} Kxf6 {[%emt 0:03:27]} 51. Qf4+ {[%emt 0:01:47]} Qf5 {[%emt 0:00:34]} 52. Qd6+ {[%emt 0:00:54]} Qe6 {[%emt 0:00:09]} 53. Qf8+ {[%emt 0:00:54]} Ke5 {[%emt 0:00:25]} 54. Qc5+ {[%emt 0:00:39]} Qd5 {[%emt 0:01:58]} 55. Qe7+ {[%emt 0:00:38]} Kd4 {[%emt 0:07:58]} 56. Qb4+ {[%emt 0:02:32]} Kd3 {[%emt 0:01:13]} 57. Qc3+ {[%emt 0:01:23]} Ke2 {[%emt 0:00:12]} 58. Qc2+ {[%emt 0:01:23]} Qd2 {[%emt 0:01:51]} 59. Qxc6 {[%emt 0:00:27]} Qxb2 {[%emt 0:00:40]} 60. Qxg6 {[%emt 0:00:40]} a3 {[%emt 0:00:29]} 61. Qe4+ {[%emt 0:01:09]} Kd2 {[%emt 0:00:41]} 62. Kh3 {[%emt 0:01:03]} b4 {[%emt 0:00:42]} 63. Qd5+ {[%emt 0:00:23]} Kc1 {[%emt 0:00:18]} 64. Qc4+ {[%emt 0:00:44]} Qc3 {[%emt 0:00:13]} 65. Qf1+ {[%emt 0:00:13]} Kb2 {[%emt 0:00:12]} 66. Qe2+ {[%emt 0:00:14]} Kb1 {[%emt 0:00:41]} 67. Qe4+ {[%emt 0:01:01]} Ka1 {[%emt 0:00:21]} 68. Qe2 {[%emt 0:00:27]} b3 {[%emt 0:00:46]} 69. Qd1+ {[%emt 0:00:22]} Ka2 {[%emt 0:00:15]} 70. Qd5 {[%emt 0:00:05]} Kb2 {[%emt 0:00:26]} 71. Qe4 {[%emt 0:00:36]} a2 {[%emt 0:00:47]} 72. Qe2+ {[%emt 0:00:07]} Kc1 {[%emt 0:00:32]} 73. Qf1+ {[%emt 0:00:12]} Kd2 {[%emt 0:00:12]} 74. Qg2+ {[%emt 0:01:07]} Kd3 {[%emt 0:02:16]} 75. Qg6+ {[%emt 0:00:30]} Kc4 {[%emt 0:00:24]} 76. Qe4+ {[%emt 0:00:50]} Qd4 {[%emt 0:01:00]} 77. Qe2+ {[%emt 0:00:24]} Kb4 {[%emt 0:00:20]} 78. Qe7+ {[%emt 0:00:42]} Kc3 {[%emt 0:00:35]} 79. Qe1+ {[%emt 0:00:21]} Qd2 {[%emt 0:00:26]} 80. Qe5+ {[%emt 0:00:26]} Kc2 {[%emt 0:00:20]} 81. Qc5+ {[%emt 0:01:05]} Kb1 {[%emt 0:00:23]} 82. Qg1+ {[%emt 0:00:14]} Kb2 {[%emt 0:00:17]} 83. Qg7+ {[%emt 0:00:09]} Qc3 {[%emt 0:00:28]} 84. Qg2+ {[%emt 0:00:12]} Ka3 {[%emt 0:00:09]} 85. Qf1 {[%emt 0:00:59]} a1=Q {[%emt 0:00:33]} 86. Qa6+ {[%emt 0:00:06]} Kb4 {[%emt 0:00:18]} 87. Qb7+ {[%emt 0:00:38]} Kc4 {[%emt 0:00:14]} 88. Qc6+ {[%emt 0:00:42]} Kd3 {[%emt 0:00:19]} 89. Qg6+ {[%emt 0:00:10]} Ke3 {[%emt 0:00:15]} 90. Qe4+ {[%emt 0:01:14]} Kd2 {[%emt 0:01:20]} 91. Qd5+ {[%emt 0:00:32]} Kc1 {[%emt 0:00:22]} 92. Qg5+ {[%emt 0:00:14]} Qd2 {[%emt 0:00:24]} 93. Qg1+ {[%emt 0:00:10]} Kb2 {[%emt 0:00:34]} 94. Qg7+ {[%emt 0:00:49]} Qc3 {[%emt 0:00:17]} 95. Qg2+ {[%emt 0:00:59]} Ka3 {[%emt 0:00:09]} 96. Qg1 {[%emt 0:00:39]} Qxf3+ {[%emt 0:01:15]} 0-1

[Event "SWE-ch Masters Elite 2019"]
[Site "Eskilstuna"]
[Date "2019.07.08"]
[Round "3.5"]
[White "Nyander, Joakim"]
[Black "Wengholm, Anders"]
[Result "1-0"]
[ECO "A27"]
[WhiteElo "2233"]
[BlackElo "2219"]
[Annotator "NA"]
[PlyCount "95"]
[EventDate "2019.07.06"]
[EventType "tourn"]
[EventCountry "SWE"]
[SourceTitle "playchess.com"]
[Source "ChessBase"]
[SourceQuality "1"]
[TimeControl "40/5400+30:1800+30"]

1. c4 {[%emt 0:00:00]} e5 {[%emt 0:00:05]} 2. g3 {[%emt 0:03:14]} Nc6 {[%emt 0:01:08]} 3. Nc3 {[%emt 0:01:07]} f5 {[%emt 0:16:05]} 4. Nf3 {[%emt 0:02:42]} Nf6 {[%emt 0:00:42]} 5. d4 {[%emt 0:01:17]} e4 {[%emt 0:00:20]} 6. Nh4 d6 7. Bh3 {[%emt 0:03:11]} g6 {[%emt 0:00:58]} 8. Bg5 {[%emt 0:02:03]} Bg7 {[%emt 0:00:29]} 9. Nd5 {[%emt 0:07:39]} O-O {[%emt 0:05:34]} 10. Ng2 {[%emt 0:09:32]} Ne7 {[%emt 0:04:39]} 11. Ngf4 {[%emt 0:07:51]} c6 {[%emt 0:05:28]} 12. Nxe7+ {[%emt 0:01:57]} Qxe7 {[%emt 0:00:02]} 13. e3 {[%emt 0:01:30]} Qf7 {[%emt 0:03:15]} 14. Bxf6 {[%emt 0:01:06]} Bxf6 {[%emt 0:01:58]} 15. Rc1 {[%emt 0:01:11]} c5 {[%emt 0:19:00]} 16. Qd2 {[%emt 0:08:23]} cxd4 {[%emt 0:05:34]} 17. exd4 {[%emt 0:00:24]} Be6 {[%emt 0:04:31]} 18. b3 {[%emt 0:06:37]} h5 {[%emt 0:06:47]} 19. Bf1 {[%emt 0:04:12]} h4 {[%emt 0:00:49]} 20. gxh4 {[%emt 0:03:20]} Kh7 {[%emt 0:01:03]} 21. h5 {[%emt 0:13:11]} g5 {[%emt 0:01:41]} 22. Ng6 {[%emt 0:00:53]} Rfe8 {[%emt 0:01:31]} 23. Rg1 {[%emt 0:03:41]} f4 {[%emt 0:03:12]} 24. h4 {[%emt 0:01:22]} Bf5 {[%emt 0:02:30]} 25. hxg5 {[%emt 0:02:53]} e3 {[%emt 0:00:22]} 26. fxe3 {[%emt 0:00:57]} fxe3 {[%emt 0:02:45]} 27. Qc3 {[%emt 0:02:19]} Bg7 {[%emt 0:04:34]} 28. Nf4 {[%emt 0:02:32]} Kg8 {[%emt 0:00:48]} 29. Be2 {[%emt 0:01:59]} Re4 {[%emt 0:00:32]} 30. Rf1 {[%emt 0:01:04]} Bxd4 {[%emt 0:00:39]} 31. Qa5 {[%emt 0:00:53]} Be5 {[%emt 0:01:58]} 32. Nd3 {[%emt 0:02:20]} Re8 {[%emt 0:05:14]} 33. Qd5 {[%emt 0:01:47]} Re6 {[%emt 0:01:07]} 34. c5 {[%emt 0:01:01]} Rd4 {[%emt 0:00:22]} 35. Qf3 {[%emt 0:00:21]} Bf4 {[%emt 0:01:12]} 36. Nxf4 {[%emt 0:00:36]} Re5 {[%emt 0:00:32]} 37. cxd6 {[%emt 0:01:02]} Qd7 {[%emt 0:00:09]} 38. Nd3 {[%emt 0:00:52]} Qxd6 {[%emt 0:00:21]} 39. Rc4 {[%emt 0:01:20]} Rxd3 {[%emt 0:00:22]} 40. Bxd3 {[%emt 0:01:05]} Qxd3 {[%emt 0:00:38]} 41. Rc8+ {[%emt 0:00:56]} Kg7 {[%emt 0:08:04]} 42. Qxb7+ {[%emt 0:06:19]} Bd7 {[%emt 0:00:17]} 43. h6+ {[%emt 0:01:36]} Kh7 {[%emt 0:02:41]} 44. Rf7+ {[%emt 0:04:07]} Kg6 {[%emt 0:00:09]} 45. Rxd7 {[%emt 0:00:39]} Qb1+ {[%emt 0:05:31]} 46. Rd1 {[%emt 0:01:06]} Qxa2 {[%emt 0:00:25]} 47. Rd6+ {[%emt 0:01:54]} Kh5 {[%emt 0:01:53]} 48. Qf3+ {[%emt 0:00:24]} 1-0